fUSD/lending_fUSD_20250108
["ID","MTS","AMOUNT","RATE_DAILY","PERIOD"]
[348126897,1736343044451,-500.0,9.999e-05,2]
[348126899,1736343044461,-511.5,9.999e-05,2]
[348126901,1736343044470,-500.0,9.999e-05,2]
[348126903,1736343044479,-500.0,9.999e-05,2]
[348126905,1736343044489,-500.0,9.999e-05,2]
[348126907,1736343044499,-773.13,9.999e-05,2]
[348126908,1736343044508,-2944.03,9.999e-05,2]
[348126910,1736343044518,-500.0,9.999e-05,2]
[348126912,1736343044527,-500.0,9.999e-05,2]
[348126914,1736343044536,-500.0,9.999e-05,2]
[348126915,1736343044545,-662.73,9.999e-05,2]
[348126917,1736343044555,-193.66266276,9.999e-05,2]
[348126919,1736343044565,-1460.29,9.999e-05,2]
[348126921,1736343044574,-500.0,9.999e-05,2]
[348126923,1736343044584,-602.58606876,9.999e-05,2]
[348126924,1736343044593,-500.0,9.999e-05,2]
[348126926,1736343044603,-940.28,9.999e-05,2]
[348126928,1736343044613,-500.0,9.999e-05,2]
[348126930,1736343044623,-1123.13,9.999e-05,2]
[348126932,1736343044632,-500.0,9.999e-05,2]
[348126934,1736343044641,-7929.47,9.999e-05,2]
[348126936,1736343044651,-7929.47,9.999e-05,2]
[348126937,1736343044660,-7929.47,9.999e-05,2]
[348126939,1736343044670,-7929.47,9.999e-05,2]
[348126941,1736343044679,-7929.47,9.999e-05,2]
[348126943,1736343044690,-7929.47,9.999e-05,2]
[348126945,1736343044700,-500.0,9.999e-05,7]
[348126947,1736343044710,-500.0,9.999e-05,2]
[348126948,1736343044719,-500.0,9.999e-05,2]
[348126950,1736343044728,-500.0,9.999e-05,2]
[348126952,1736343044738,-1000.0,9.999e-05,2]
[348126954,1736343044752,-500.0,9.999e-05,2]
[348126956,1736343044761,-185.95888902,9.999e-05,2]
[348126958,1736343044770,-687.38,9.999e-05,2]
[348126959,1736343044780,-410.25336199,9.999e-05,2]
[348126961,1736343044790,-500.0,9.999e-05,2]
[348126963,1736343044800,-500.0,9.999e-05,2]
[348126965,1736343044809,-500.0,9.999e-05,2]
[348126967,1736343044819,-500.0,9.999e-05,2]
[348126969,1736343044829,-500.0,9.999e-05,2]
[348126970,1736343044838,-1891.76,9.999e-05,2]
[348126972,1736343044848,-500.0,9.999e-05,2]
[348126974,1736343044857,-500.0,9.999e-05,2]
[348126976,1736343044867,-500.0,9.999e-05,2]
[348126978,1736343044877,-500.0,9.999e-05,2]
[348126980,1736343044887,-500.0,9.999e-05,2]
[348126982,1736343044896,-500.0,9.999e-05,2]
[348126983,1736343044906,-1760.39,9.999e-05,2]
[348126985,1736343044916,-500.0,9.999e-05,2]
[348126987,1736343044926,-500.0,9.999e-05,2]
[348126989,1736343044935,-500.0,9.999e-05,2]
[348126991,1736343044945,-500.0,9.999e-05,2]
[348126993,1736343044955,-500.0,9.999e-05,2]
[348126995,1736343044964,-500.0,9.999e-05,2]
[348126996,1736343044973,-500.0,9.999e-05,2]
[348126997,1736343044982,-500.0,9.999e-05,2]
[348126998,1736343044992,-804.67,9.999e-05,2]
[348126999,1736343045001,-500.0,9.999e-05,2]
[348127000,1736343045010,-1440.7,9.999e-05,2]
[348127001,1736343045019,-339.49783869,0.0001,2]
[348127002,1736343045028,-492.65,0.0001,2]
[348127003,1736343045039,-220124.10955939,0.0001,2]
[348127004,1736343045048,-163.395157,0.0001,7]
[348127005,1736343045058,-256959.17207729,0.0001,2]
[348127006,1736343045067,-7880.57310539,0.0001,3]
[348127007,1736343045076,-685.1538432,0.0001,2]
[348127008,1736343045086,-204.53559601,0.0001,2]
[348127009,1736343045095,-1061725.7748785,0.0001,2]
[348127011,1736343045105,-3000.0,0.0001,2]
[348127012,1736343045115,-214.88439837,0.0001,2]
[348127015,1736343045124,-428.61761907,0.0001,2]
[348127017,1736343045134,-428.617619,0.0001,2]
[348127018,1736343045144,-428.617619,0.0001,2]
[348127020,1736343045154,-428.617619,0.00010028,2]
[348127023,1736343045167,-194.96869257,0.0001003,2]
[348127025,1736343045176,-428.617619,0.00010066,2]
[348127026,1736343045186,-150.0,0.00010068,2]
[348127029,1736343045196,-150.0,0.00010068,2]
[348127031,1736343045206,-150.0,0.00010068,2]
[348127033,1736343045216,-341.8,0.0001007,2]
[348127035,1736343045225,-3001.77,0.00010073,2]
[348127037,1736343045235,-1412.791,0.00010073,2]
[348127039,1736343045244,-152.604,0.00010073,2]
[348127040,1736343045254,-500.0,0.00010073,2]
[348127042,1736343045263,-500.0,0.00010073,2]
[348127044,1736343045273,-500.0,0.00010073,2]
[348127046,1736343045282,-500.0,0.00010073,2]
[348127048,1736343045291,-587.59,0.00010073,2]
[348127050,1736343045301,-500.0,0.00010073,2]
[348127052,1736343045310,-500.0,0.00010073,2]
[348127054,1736343045319,-500.0,0.00010073,2]
[348127056,1736343045329,-564.74,0.00010073,2]
[348127058,1736343045338,-500.0,0.00010073,2]
[348127060,1736343045348,-500.0,0.00010073,2]
[348127062,1736343045357,-500.0,0.00010073,2]
[348127064,1736343045367,-500.0,0.00010073,2]
[348127066,1736343045376,-500.0,0.00010073,2]
[348127068,1736343045386,-500.0,0.00010073,2]
[348127070,1736343045395,-500.0,0.00010073,2]
[348127073,1736343045405,-991.75,0.00010073,2]
[348127075,1736343045418,-500.0,0.00010073,2]
[348127076,1736343045427,-500.0,0.00010073,2]
[348127078,1736343045436,-500.0,0.00010073,2]
[348127080,1736343045446,-500.0,0.00010073,2]
[348127083,1736343045456,-500.0,0.00010073,2]
[348127084,1736343045465,-500.0,0.00010073,2]
[348127087,1736343045475,-500.0,0.00010073,2]
[348127089,1736343045484,-500.0,0.00010073,2]
[348127090,1736343045494,-500.0,0.00010073,2]
[348127093,1736343045504,-500.0,0.00010073,2]
[348127095,1736343045513,-702.19,0.00010073,2]
[348127096,1736343045523,-500.0,0.00010073,2]
[348127099,1736343045535,-500.0,0.00010073,2]
[348127101,1736343045544,-500.0,0.00010073,2]
[348127103,1736343045554,-500.0,0.00010073,2]
[348127105,1736343045564,-372.65639797,0.00010073,2]
[348127107,1736343045573,-500.0,0.00010073,2]
[348127109,1736343045582,-500.0,0.00010073,2]
[348127111,1736343045591,-773.84,0.00010073,2]
[348127113,1736343045601,-557.97,0.00010073,2]
[348127115,1736343045610,-698.97,0.00010073,2]
[348127117,1736343045620,-757.57,0.00010073,2]
[348127119,1736343045629,-500.0,0.00010073,2]
[348127121,1736343045638,-500.0,0.00010073,2]
[348127123,1736343045648,-500.0,0.00010073,2]
[348127125,1736343045657,-500.0,0.00010073,2]
[348127127,1736343045669,-500.0,0.00010073,2]
[348127129,1736343045679,-500.0,0.00010073,2]
[348127131,1736343045688,-500.0,0.00010073,2]
[348127132,1736343045698,-500.0,0.00010073,2]
[348127133,1736343045707,-500.0,0.00010073,2]
[348127134,1736343045716,-500.0,0.00010073,2]
[348127135,1736343045725,-568.03,0.00010073,2]
[348127136,1736343045735,-602.22,0.00010073,2]
[348127137,1736343045748,-500.0,0.00010073,2]
[348127138,1736343045758,-500.0,0.00010073,2]
[348127139,1736343045769,-530.24,0.00010073,2]
[348127140,1736343045779,-500.0,0.00010073,2]
[348127141,1736343045789,-500.0,0.00010073,2]
[348127142,1736343045799,-500.0,0.00010073,2]
[348127143,1736343045808,-610.89,0.00010073,2]
[348127144,1736343045817,-500.0,0.00010073,2]
[348127145,1736343045827,-721.25,0.00010073,2]
[348127146,1736343045836,-688.9,0.00010073,2]
[348127147,1736343045846,-500.0,0.00010073,2]
[348127148,1736343045855,-500.0,0.00010073,2]
[348127149,1736343045864,-500.0,0.00010073,2]
[348127150,1736343045873,-1217.29,0.00010073,2]
[348127151,1736343045883,-182.17861885,0.0001008,2]
[348127152,1736343045892,-153.57476241,0.0001008,2]
[348127153,1736343045903,-18835.36957818,0.0001008,2]
[348127154,1736343045915,-1213.0,0.000101,2]
[348127155,1736343045924,-501672.5765416,0.000101,2]
[348127156,1736343045934,-428.617619,0.00010103,2]
[348127157,1736343045944,-156.4,0.00010137,2]
[348127158,1736343045954,-181.15,0.00010137,2]
[348127159,1736343045964,-814.07,0.00010137,2]
[348127160,1736343045973,-153.5747624,0.0001014,2]
[348127161,1736343045983,-18835.36957817,0.0001014,2]
[348127162,1736343045992,-428.617619,0.00010141,2]
[348127163,1736343046002,-364.0,0.00010164,2]
[348127164,1736343046011,-1173.0,0.00010164,2]
[348127165,1736343046021,-3030.0,0.00010164,2]
[348127166,1736343046031,-150.0,0.00010171,2]
[348127167,1736343046040,-1000.0,0.00010177,2]
[348127168,1736343046049,-7929.47,0.00010178,2]
[348127169,1736343046059,-500.0,0.00010179,2]
[348127170,1736343046068,-7929.47,0.00010179,2]
[348127171,1736343046078,-7929.47,0.00010179,2]
[348127172,1736343046087,-7929.47,0.00010179,2]
[348127173,1736343046097,-7929.47,0.00010179,2]
[348127175,1736343046106,-7929.47,0.00010179,2]
[348127176,1736343046116,-7929.47,0.00010179,2]
[348127177,1736343046125,-7929.47,0.00010179,2]
[348127178,1736343046134,-7929.47,0.00010179,2]
[348127179,1736343046144,-7929.47,0.00010179,2]
[348127180,1736343046154,-7929.47,0.00010179,2]
[348127182,1736343046168,-7929.47,0.00010179,2]
[348127183,1736343046178,-7929.47,0.00010179,2]
[348127184,1736343046187,-7929.47,0.00010179,2]
[348127185,1736343046197,-7929.47,0.00010179,2]
[348127186,1736343046206,-7929.47,0.00010179,2]
[348127187,1736343046215,-7929.51701681,0.00010179,2]
[348127188,1736343046225,-428.617619,0.00010179,2]
[348127189,1736343046234,-3146094.05034508,0.0001018,2]
[348127190,1736343046244,-151.0,0.0001018,2]
[348127191,1736343046253,-250.0,0.000102,2]
[348127192,1736343046263,-250.0,0.000102,2]
[348127193,1736343046273,-250.0,0.000102,2]
[348127194,1736343046283,-250.0,0.000102,2]
[348127195,1736343046292,-250.0,0.000102,2]
[348127196,1736343046301,-250.0,0.000102,2]
[348127197,1736343046311,-250.0,0.000102,2]
[348127198,1736343046321,-250.0,0.000102,2]
[348127199,1736343046330,-250.0,0.000102,2]
[348127200,1736343046340,-250.0,0.000102,2]
[348127201,1736343046350,-250.0,0.000102,2]
[348127202,1736343046359,-251.1,0.000102,2]
[348127203,1736343046369,-1937.0,0.000102,2]
[348127204,1736343046378,-153.5747624,0.000102,2]
[348127205,1736343046388,-18835.36957817,0.000102,2]
[348127206,1736343046397,-428.617619,0.00010217,2]
[348127207,1736343046407,-441.38,0.00010219,2]
[348127208,1736343046420,-3894.0,0.00010226,2]
[348127209,1736343046429,-1267.0,0.00010226,2]
[348127210,1736343046439,-2019.577,0.00010226,2]
[348127211,1736343046449,-150.0,0.00010226,2]
[348127212,1736343046458,-9617.0,0.00010226,2]
[348127213,1736343046468,-636.0,0.00010226,2]
[348127214,1736343046477,-1173.0,0.00010226,2]
[348127215,1736343046486,-151.545,0.00010226,2]
[348127216,1736343046495,-567.502,0.00010226,2]
[348127217,1736343046505,-641.196,0.00010226,2]
[348127218,1736343046514,-428.617619,0.00010255,2]
[348127219,1736343046524,-214.88439837,0.00010262,2]
[348127220,1736343046533,-500.0,0.00010271,2]
[348127221,1736343046543,-894.93,0.00010271,2]
[348127222,1736343046553,-2476.18,0.00010271,2]
[348127223,1736343046563,-1339.35,0.00010271,2]
[348127224,1736343046573,-576.01,0.00010271,2]
[348127225,1736343046583,-609.01,0.00010271,2]
[348127226,1736343046592,-788.95,0.00010271,2]
[348127227,1736343046602,-2119.12,0.00010271,2]
[348127228,1736343046611,-700.42,0.00010271,2]
[348127229,1736343046621,-589.33,0.00010271,2]
[348127230,1736343046630,-500.0,0.00010271,2]
[348127231,1736343046639,-2182.32,0.00010271,2]
[348127232,1736343046649,-5278.11,0.00010271,2]
[348127233,1736343046660,-500.0,0.00010271,2]
[348127234,1736343046669,-1090.07,0.00010271,2]
[348127235,1736343046679,-801.74,0.00010271,2]
[348127236,1736343046688,-841.95,0.00010271,2]
[348127237,1736343046697,-555.46,0.00010271,2]
[348127238,1736343046708,-1664.68,0.00010271,2]
[348127239,1736343046717,-1841.02,0.00010271,2]
[348127240,1736343046727,-3280.98,0.00010271,2]
[348127241,1736343046737,-500.0,0.00010271,2]
[348127242,1736343046751,-500.0,0.00010271,2]
[348127244,1736343046760,-1264.09,0.00010271,2]
[348127246,1736343046770,-1443.58,0.00010271,2]
[348127247,1736343046780,-873.67,0.00010271,2]
[348127248,1736343046790,-500.0,0.00010271,2]
[348127249,1736343046848,-718.78,0.00010271,2]
[348127250,1736343046858,-791.74,0.00010271,2]
[348127251,1736343046867,-585.05,0.00010271,2]
[348127252,1736343046877,-686.87,0.00010271,2]
[348127253,1736343046887,-2510.03,0.00010271,2]
[348127254,1736343046897,-1605.06,0.00010271,2]
[348127255,1736343046906,-500.0,0.00010271,2]
[348127256,1736343046919,-1625.82,0.00010271,2]
[348127257,1736343046928,-1063.77,0.00010271,2]
[348127258,1736343046938,-500.0,0.00010271,2]
[348127259,1736343046947,-1344.19,0.00010271,2]
[348127260,1736343046957,-500.0,0.00010271,2]
[348127261,1736343046967,-1668.18,0.00010271,2]
[348127262,1736343046976,-500.0,0.00010271,2]
[348127263,1736343046986,-500.0,0.00010271,2]
[348127264,1736343046997,-500.0,0.00010271,2]
[348127265,1736343047006,-2230.31,0.00010271,2]
[348127266,1736343047016,-570.51,0.00010271,2]
[348127267,1736343047026,-686.22,0.00010271,2]
[348127268,1736343047035,-929.77,0.00010271,2]
[348127269,1736343047045,-500.0,0.00010271,2]
[348127270,1736343047055,-500.84,0.00010271,2]
[348127271,1736343047064,-500.0,0.00010271,2]
[348127272,1736343047074,-1248.72,0.00010272,2]
[348127273,1736343047084,-765.71,0.00010272,2]
[348127274,1736343047093,-2136.91,0.00010272,2]
[348127275,1736343047103,-500.0,0.00010272,2]
[348127276,1736343047112,-564.21,0.00010272,2]
[348127277,1736343047122,-1016.12,0.00010272,2]
[348127278,1736343047132,-3351.27,0.00010272,2]
[348127279,1736343047141,-500.0,0.00010272,2]
[348127280,1736343047152,-1506.95,0.00010272,2]
[348127281,1736343047164,-3396.95,0.00010272,2]
[348127282,1736343047174,-500.0,0.00010272,2]
[348127283,1736343047183,-500.0,0.00010272,2]
[348127284,1736343047193,-500.0,0.00010272,2]
[348127285,1736343047202,-500.0,0.00010272,2]
[348127286,1736343047212,-617.22,0.00010272,2]
[348127287,1736343047223,-500.0,0.00010272,2]
[348127288,1736343047232,-590.58,0.00010272,2]
[348127289,1736343047241,-507.1,0.00010272,2]
[348127290,1736343047251,-500.0,0.00010272,2]
[348127291,1736343047261,-500.0,0.00010272,2]
[348127292,1736343047270,-500.0,0.00010272,2]
[348127293,1736343047280,-500.0,0.00010272,2]
[348127294,1736343047289,-500.0,0.00010272,2]
[348127295,1736343047299,-872.58,0.00010272,2]
[348127296,1736343047309,-500.0,0.00010272,2]
[348127297,1736343047318,-500.0,0.00010272,2]
[348127298,1736343047328,-646.98,0.00010272,2]
[348127299,1736343047337,-584.2,0.00010272,2]
[348127300,1736343047346,-500.0,0.00010272,2]
[348127301,1736343047355,-500.0,0.00010272,2]
[348127302,1736343047365,-500.0,0.00010272,2]
[348127303,1736343047374,-500.0,0.00010272,2]
[348127304,1736343047384,-500.0,0.00010272,2]
[348127305,1736343047393,-1462.85,0.00010272,2]
[348127306,1736343047403,-670.01,0.00010272,2]
[348127307,1736343047418,-500.0,0.00010272,2]
[348127308,1736343047428,-1484.66,0.00010272,2]
[348127309,1736343047437,-500.0,0.00010272,2]
[348127310,1736343047447,-500.0,0.00010272,2]
[348127311,1736343047457,-500.0,0.00010272,2]
[348127312,1736343047467,-624.46,0.00010272,2]
[348127313,1736343047476,-732.18,0.00010272,2]
[348127314,1736343047485,-500.0,0.00010272,2]
[348127315,1736343047495,-695.78,0.00010272,2]
[348127316,1736343047504,-500.0,0.00010272,2]
[348127317,1736343047514,-500.0,0.00010272,2]
[348127318,1736343047523,-536.92,0.00010272,2]
[348127319,1736343047533,-500.0,0.00010272,2]
[348127320,1736343047542,-500.0,0.00010272,2]
[348127321,1736343047551,-500.0,0.00010272,2]
[348127322,1736343047563,-500.0,0.00010272,2]
[348127323,1736343047572,-500.0,0.00010272,2]
[348127324,1736343047582,-764.01,0.00010272,2]
[348127325,1736343047591,-500.0,0.00010272,2]
[348127326,1736343047600,-500.0,0.00010272,2]
[348127327,1736343047609,-500.0,0.00010272,2]
[348127328,1736343047619,-500.0,0.00010272,2]
[348127329,1736343047628,-1145.44,0.00010272,2]
[348127330,1736343047637,-500.0,0.00010272,2]
[348127331,1736343047646,-817.64,0.00010272,2]
[348127332,1736343047656,-500.0,0.00010272,2]
[348127333,1736343047667,-519.71,0.00010272,2]
[348127334,1736343047676,-611.78,0.00010272,2]
[348127335,1736343047686,-500.0,0.00010272,2]
[348127336,1736343047695,-547.13,0.00010272,2]
[348127337,1736343047704,-500.0,0.00010272,2]
[348127338,1736343047714,-500.0,0.00010272,2]
[348127339,1736343047723,-1161.6,0.00010272,2]
[348127340,1736343047732,-500.0,0.00010272,2]
[348127341,1736343047744,-936.694682,0.00010272,2]
[348127342,1736343047753,-500.0,0.00010272,2]
[348127343,1736343047762,-546.4,0.00010272,2]
[348127344,1736343047772,-500.0,0.00010272,2]
[348127345,1736343047782,-2432.84,0.00010272,2]
[348127346,1736343047791,-500.0,0.00010272,2]
[348127347,1736343047800,-1048.165828,0.00010272,2]
[348127348,1736343047810,-500.0,0.00010272,2]
[348127349,1736343047820,-4466.67,0.00010272,2]
[348127350,1736343047829,-703.86,0.00010272,2]
[348127351,1736343047839,-500.0,0.00010272,2]
[348127352,1736343047848,-619.14,0.00010272,2]
[348127353,1736343047858,-545.76,0.00010272,2]
[348127354,1736343047867,-1355.89,0.00010272,2]
[348127355,1736343047876,-574.42,0.00010272,2]
[348127356,1736343047885,-1569.35,0.00010272,2]
[348127357,1736343047894,-500.0,0.00010272,2]
[348127358,1736343047903,-500.0,0.00010272,2]
[348127359,1736343047915,-500.0,0.00010272,2]
[348127360,1736343047924,-500.0,0.00010272,2]
[348127361,1736343047933,-500.0,0.00010272,2]
[348127362,1736343047943,-500.0,0.00010272,2]
[348127363,1736343047952,-504.08,0.00010272,2]
[348127364,1736343047961,-500.0,0.00010272,2]
[348127365,1736343047971,-500.0,0.00010272,2]
[348127366,1736343047980,-500.0,0.00010272,2]
[348127367,1736343047989,-3586.32,0.00010272,2]
[348127368,1736343047999,-500.0,0.00010272,2]
[348127369,1736343048008,-500.0,0.00010272,2]
[348127370,1736343048018,-3320.76,0.00010272,2]
[348127371,1736343048027,-500.0,0.00010272,2]
[348127372,1736343048037,-500.0,0.00010272,2]
[348127373,1736343048047,-500.0,0.00010272,2]
[348127374,1736343048057,-500.0,0.00010272,2]
[348127375,1736343048067,-500.0,0.00010272,2]
[348127376,1736343048077,-2801.6,0.00010272,2]
[348127377,1736343048086,-3508.22,0.00010272,2]
[348127378,1736343048096,-1375.13,0.00010272,2]
[348127379,1736343048105,-539.35,0.00010272,2]
[348127380,1736343048115,-500.0,0.00010272,2]
[348127381,1736343048124,-500.0,0.00010272,2]
[348127382,1736343048133,-500.0,0.00010272,2]
[348127383,1736343048143,-500.0,0.00010272,2]
[348127384,1736343048153,-500.0,0.00010272,2]
[348127385,1736343048164,-3402.85,0.00010272,2]
[348127386,1736343048175,-500.0,0.00010272,2]
[348127387,1736343048184,-500.0,0.00010272,2]
[348127388,1736343048193,-1972.1,0.00010272,2]
[348127389,1736343048203,-500.0,0.00010272,2]
[348127390,1736343048212,-500.0,0.00010272,2]
[348127391,1736343048222,-500.0,0.00010272,2]
[348127392,1736343048231,-910.69,0.00010272,2]
[348127393,1736343048241,-500.0,0.00010272,2]
[348127394,1736343048251,-500.0,0.00010272,2]
[348127395,1736343048260,-500.0,0.00010272,2]
[348127396,1736343048270,-500.0,0.00010272,2]
[348127397,1736343048280,-500.0,0.00010273,2]
[348127398,1736343048289,-378.68506305,0.00010273,2]
[348127399,1736343048298,-500.0,0.00010273,2]
[348127400,1736343048307,-500.0,0.00010273,2]
[348127401,1736343048317,-500.0,0.00010273,2]
[348127402,1736343048327,-500.0,0.00010273,2]
[348127403,1736343048337,-1247.91,0.00010273,2]
[348127404,1736343048346,-500.0,0.00010273,2]
[348127405,1736343048355,-1240.5,0.00010273,2]
[348127406,1736343048364,-500.0,0.00010273,2]
[348127407,1736343048374,-500.0,0.00010273,2]
[348127408,1736343048383,-2973.58,0.00010273,2]
[348127409,1736343048392,-500.0,0.00010273,2]
[348127410,1736343048402,-6093.87,0.00010273,2]
[348127411,1736343048412,-500.0,0.00010273,2]
[348127412,1736343048421,-401.87,0.00010273,2]
[348127413,1736343048430,-500.0,0.00010273,2]
[348127414,1736343048439,-596.4,0.00010273,2]
[348127415,1736343048449,-500.0,0.00010273,2]
[348127416,1736343048458,-500.0,0.00010273,2]
[348127417,1736343048467,-500.0,0.00010273,2]
[348127418,1736343048476,-672.96,0.00010273,2]
[348127419,1736343048486,-500.0,0.00010273,2]
[348127420,1736343048495,-500.0,0.00010273,2]
[348127421,1736343048505,-500.0,0.00010273,2]
[348127422,1736343048515,-311.99,0.00010273,2]
[348127423,1736343048525,-500.0,0.00010273,2]
[348127424,1736343048534,-500.0,0.00010273,2]
[348127425,1736343048544,-530.13,0.00010273,2]
[348127426,1736343048553,-500.0,0.00010273,2]
[348127427,1736343048563,-500.0,0.00010273,2]
[348127428,1736343048572,-500.0,0.00010273,2]
[348127429,1736343048581,-500.0,0.00010273,2]
[348127430,1736343048590,-773.13,0.00010273,2]
[348127431,1736343048600,-2944.03,0.00010273,2]
[348127432,1736343048609,-500.0,0.00010273,2]
[348127433,1736343048619,-500.0,0.00010273,2]
[348127434,1736343048629,-500.0,0.00010273,2]
[348127435,1736343048639,-662.73,0.00010273,2]
[348127436,1736343048649,-1460.29,0.00010273,2]
[348127437,1736343048658,-500.0,0.00010273,2]
[348127438,1736343048674,-940.28,0.00010273,2]
[348127439,1736343048684,-500.0,0.00010273,2]
[348127440,1736343048694,-1123.13,0.00010273,2]
[348127441,1736343048704,-500.0,0.00010273,2]
[348127442,1736343048715,-500.0,0.00010273,7]
[348127443,1736343048725,-500.0,0.00010273,2]
[348127444,1736343048735,-500.0,0.00010273,2]
[348127445,1736343048747,-500.0,0.00010273,2]
[348127446,1736343048757,-1000.0,0.00010273,2]
[348127447,1736343048767,-500.0,0.00010273,2]
[348127448,1736343048777,-687.38,0.00010273,2]
[348127449,1736343048787,-500.0,0.00010273,2]
[348127450,1736343048797,-500.0,0.00010273,2]
[348127451,1736343048806,-500.0,0.00010273,2]
[348127452,1736343048816,-500.0,0.00010273,2]
[348127453,1736343048825,-500.0,0.00010273,2]
[348127454,1736343048835,-500.0,0.00010273,2]
[348127455,1736343048845,-1891.76,0.00010273,2]
[348127456,1736343048854,-500.0,0.00010273,2]
[348127457,1736343048864,-500.0,0.00010273,2]
[348127458,1736343048874,-500.0,0.00010273,2]
[348127459,1736343048883,-500.0,0.00010273,2]
[348127460,1736343048894,-1760.39,0.00010273,2]
[348127461,1736343048904,-500.0,0.00010273,2]
[348127462,1736343048915,-500.0,0.00010273,2]
[348127463,1736343048924,-500.0,0.00010273,2]
[348127464,1736343048934,-500.0,0.00010273,2]
[348127465,1736343048944,-423.52410409,0.00010273,2]
[348127466,1736343048953,-251.76994488,0.00010273,2]
[348127467,1736343048963,-500.0,0.00010273,2]
[348127468,1736343048973,-618.94982258,0.00010273,2]
[348127469,1736343048982,-804.67,0.00010273,2]
[348127470,1736343048992,-500.0,0.00010273,2]
[348127471,1736343049002,-1440.7,0.00010273,2]
[348127472,1736343049012,-150.0,0.00010274,2]
[348127473,1736343049022,-150.0,0.00010274,2]
[348127474,1736343049035,-150.0,0.00010274,2]
[348127475,1736343049046,-428.617619,0.00010293,2]
[348127476,1736343049056,-152.31,0.00010299,2]
[348127477,1736343049066,-152.9,0.00010299,2]
[348127478,1736343049076,-6846812.32998744,0.000103,2]
[348127479,1736343049447,-1215.03383588,0.000103,2]
[348127480,1736343049460,-296.9,0.000103,2]
[348127481,1736343049472,-8506.90081508,0.000103,2]
[348127482,1736343049484,-4553.004287,0.000103,2]
[348127483,1736343049496,-455.09448285,0.000103,2]
[348127484,1736343049508,-2200.45424,0.000103,2]
[348127485,1736343049519,-1942.37721319,0.000103,2]
[348127486,1736343049546,-337.715,9.998e-05,2]
[348127487,1736343049565,-162.285,9.998e-05,2]
[348127488,1736343049575,-3595.61443146,0.000103,2]
[348127489,1736343050084,-817.61,9.799e-05,2]
[348127490,1736343050094,-151.82162331,9.973e-05,2]
[348127491,1736343050104,-539.65859332,0.00010073,2]
[348127492,1736343050117,-277.95140668,0.00010073,2]
[348127493,1736343050126,-91.1712954,0.00010226,2]
[348127494,1736343050138,-189.9347046,0.00010226,2]
[348127495,1736343050149,-500.0,0.00010272,2]
[348127496,1736343050159,-42.6072954,0.000103,2]
[348127497,1736343050180,-669274.44166159,0.000103,2]
[348127498,1736343050201,-272767.75298198,0.000103,2]
[348127499,1736343050213,-1680859.90074041,0.000103,2]
[348127500,1736343050224,-468.649,0.000103,2]
[348127501,1736343050244,-1190.67278887,0.000103,2]
[348127502,1736343050256,-517.73678623,0.000103,2]
[348127503,1736343050268,-422.30216206,0.000103,2]
[348127504,1736343051090,-1000.0,9.898e-05,2]
[348127505,1736343051099,-281.10626026,0.00010226,2]
[348127506,1736343051110,-1204.95257994,0.00010226,2]